fUST/lending_fUST_20260420
["ID","MTS","AMOUNT","RATE_DAILY","PERIOD"]
[420842333,1776621046186,-500.0,0.00019178,2]
[420842336,1776621046196,-1081.26,0.00019178,2]
[420842337,1776621046207,-500.0,0.00019178,2]
[420842340,1776621046217,-500.0,0.00019178,2]
[420842342,1776621046230,-500.0,0.00019178,2]
[420842344,1776621046240,-500.0,0.00019178,2]
[420842346,1776621046249,-500.0,0.00019178,2]
[420842348,1776621046258,-500.0,0.00019178,2]
[420842350,1776621046268,-500.0,0.00019178,2]
[420842351,1776621046277,-512.56183599,0.00019178,2]
[420842353,1776621046286,-500.0,0.00019178,2]
[420842355,1776621046296,-11447.23,0.00019178,2]
[420842357,1776621046305,-850.81,0.00019178,2]
[420842359,1776621046314,-2125.28,0.00019178,2]
[420842361,1776621046324,-500.0,0.00019178,2]
[420842363,1776621046333,-500.0,0.00019178,2]
[420842365,1776621046342,-500.0,0.00019178,2]
[420842367,1776621046352,-500.0,0.00019178,2]
[420842369,1776621046361,-515.32274675,0.00019178,2]
[420842372,1776621046373,-500.0,0.00019178,2]
[420842374,1776621046383,-8523.63,0.00019178,2]
[420842376,1776621046392,-500.0,0.00019178,2]
[420842378,1776621046401,-500.0,0.00019178,2]
[420842380,1776621046410,-500.0,0.00019178,2]
[420842382,1776621046419,-2116.35,0.00019178,2]
[420842384,1776621046429,-500.0,0.00019178,2]
[420842386,1776621046438,-500.0,0.00019178,2]
[420842388,1776621046448,-1570.44,0.00019178,2]
[420842389,1776621046457,-500.0,0.00019178,2]
[420842391,1776621046467,-500.0,0.00019178,2]
[420842393,1776621046476,-1396.8,0.00019178,2]
[420842395,1776621046485,-500.0,0.00019178,2]
[420842397,1776621046494,-500.0,0.00019178,2]
[420842399,1776621046504,-500.0,0.00019178,2]
[420842401,1776621046514,-265.79956581,0.00019178,2]
[420842403,1776621046523,-500.0,0.00019178,2]
[420842405,1776621046533,-500.0,0.00019178,2]
[420842407,1776621046543,-500.0,0.00019178,2]
[420842409,1776621046552,-500.0,0.00019178,2]
[420842411,1776621046562,-500.0,0.00019178,2]
[420842413,1776621046571,-16866.97,0.00019178,2]
[420842415,1776621046581,-186.26819696,0.00019178,2]
[420842417,1776621046591,-500.0,0.00019178,2]
[420842419,1776621046601,-2053.78,0.00019178,2]
[420842421,1776621046611,-500.0,0.00019178,2]
[420842423,1776621046621,-500.0,0.00019178,2]
[420842425,1776621046630,-500.0,0.00019178,2]
[420842427,1776621046640,-500.0,0.00019178,2]
[420842429,1776621046649,-500.0,0.00019178,2]
[420842431,1776621046659,-606.39,0.00019178,2]
[420842433,1776621046668,-500.0,0.00019178,2]
[420842435,1776621046678,-2538.58,0.00019178,2]
[420842437,1776621046687,-1000.22,0.00019178,2]
[420842439,1776621046697,-500.0,0.00019178,2]
[420842441,1776621046706,-500.0,0.00019178,2]
[420842443,1776621046715,-500.0,0.00019178,2]
[420842445,1776621046725,-816.39,0.00019178,2]
[420842447,1776621046734,-796.45,0.00019178,2]
[420842449,1776621046744,-500.0,0.00019178,2]
[420842451,1776621046753,-500.0,0.00019178,2]
[420842453,1776621046763,-500.0,0.00019178,2]
[420842455,1776621046772,-500.0,0.00019178,2]
[420842457,1776621046782,-500.0,0.00019178,2]
[420842459,1776621046791,-500.0,0.00019178,2]
[420842461,1776621046800,-500.0,0.00019178,2]
[420842463,1776621046810,-500.0,0.00019178,2]
[420842465,1776621046820,-500.0,0.00019178,2]
[420842468,1776621046830,-990.75,0.00019178,2]
[420842470,1776621046839,-684.57,0.00019178,2]
[420842471,1776621046849,-511.7818195,0.00019178,2]
[420842474,1776621046859,-500.0,0.00019178,2]
[420842475,1776621046869,-507.20155101,0.00019178,2]
[420842477,1776621046878,-824.92,0.00019178,2]
[420842479,1776621046887,-500.0,0.00019178,2]
[420842481,1776621046897,-671.13,0.00019178,2]
[420842483,1776621046907,-541.49,0.00019178,2]
[420842485,1776621046916,-500.0,0.00019178,2]
[420842488,1776621046926,-500.0,0.00019178,2]
[420842490,1776621046936,-500.0,0.00019178,2]
[420842492,1776621046946,-500.0,0.00019178,2]
[420842494,1776621046955,-500.0,0.00019178,2]
[420842495,1776621046964,-500.0,0.00019178,2]
[420842497,1776621046974,-3644.59,0.00019178,2]
[420842499,1776621046983,-609.91039521,0.00019178,2]
[420842501,1776621046992,-500.0,0.00019178,2]
[420842503,1776621047002,-500.0,0.00019178,2]
[420842505,1776621047011,-500.0,0.00019178,2]
[420842507,1776621047020,-500.0,0.00019178,2]
[420842509,1776621047030,-2047.18,0.00019178,2]
[420842511,1776621047039,-500.0,0.00019178,2]
[420842513,1776621047049,-500.0,0.00019178,2]
[420842515,1776621047058,-500.0,0.00019178,2]
[420842517,1776621047067,-500.0,0.00019178,2]
[420842519,1776621047077,-3332.02,0.00019178,2]
[420842521,1776621047087,-500.0,0.00019178,2]
[420842523,1776621047096,-636.19,0.00019178,2]
[420842525,1776621047106,-500.0,0.00019178,2]
[420842527,1776621047115,-1127.38,0.00019178,2]
[420842529,1776621047125,-500.0,0.00019178,2]
[420842531,1776621047134,-2431.11,0.00019178,2]
[420842533,1776621047144,-500.0,0.00019178,2]
[420842535,1776621047153,-500.0,0.00019178,2]
[420842537,1776621047162,-500.0,0.00019178,2]
[420842538,1776621047172,-260.30583035,0.00019178,2]
[420842540,1776621047181,-500.0,0.00019178,2]
[420842542,1776621047191,-515.96582883,0.00019178,2]
[420842543,1776621047200,-666.79,0.00019178,2]
[420842544,1776621047210,-500.0,0.00019178,2]
[420842545,1776621047219,-500.0,0.00019178,2]
[420842546,1776621047228,-500.0,0.00019178,2]
[420842547,1776621047238,-500.0,0.00019178,2]
[420842548,1776621047247,-500.0,0.00019178,2]
[420842549,1776621047260,-500.0,0.00019178,2]
[420842550,1776621047270,-500.0,0.00019178,2]
[420842551,1776621047279,-500.0,0.00019178,2]
[420842552,1776621047288,-500.0,0.00019178,2]
[420842553,1776621047298,-500.0,0.00019178,2]
[420842554,1776621047307,-500.0,0.00019178,2]
[420842555,1776621047317,-1595.08,0.00019178,2]
[420842557,1776621047326,-500.0,0.00019178,2]
[420842559,1776621047336,-500.0,0.00019178,2]
[420842561,1776621047345,-500.0,0.00019178,2]
[420842563,1776621047356,-500.0,0.00019178,2]
[420842565,1776621047364,-500.0,0.00019178,2]
[420842566,1776621047373,-501.11959231,0.00019178,2]
[420842568,1776621047383,-500.0,0.00019178,2]
[420842570,1776621047392,-500.0,0.00019178,2]
[420842572,1776621047401,-500.0,0.00019178,2]
[420842574,1776621047410,-496.9483241,0.00019178,2]
[420842576,1776621047420,-538.06,0.00019178,2]
[420842578,1776621047429,-1264.03,0.00019178,2]
[420842580,1776621047438,-1198.51,0.00019178,2]
[420842582,1776621047447,-500.0,0.00019178,2]
[420842584,1776621047457,-500.0,0.00019178,2]
[420842586,1776621047466,-500.0,0.00019178,2]
[420842588,1776621047475,-1920.11,0.00019178,2]
[420842590,1776621047484,-7209.15,0.00019178,2]
[420842592,1776621047493,-500.0,0.00019178,2]
[420842594,1776621047503,-500.0,0.00019178,2]
[420842595,1776621047512,-500.0,0.00019178,2]
[420842597,1776621047522,-500.0,0.00019178,2]
[420842599,1776621047531,-500.0,0.00019178,2]
[420842601,1776621047540,-513.60284688,0.00019178,2]
[420842603,1776621047550,-461.84600116,0.00019178,2]
[420842605,1776621047559,-500.0,0.00019178,2]
[420842607,1776621047568,-500.0,0.00019178,2]
[420842609,1776621047577,-500.0,0.00019178,2]
[420842611,1776621047587,-503.29,0.00019178,2]
[420842613,1776621047597,-4105.81,0.00019178,2]
[420842615,1776621047606,-581.66,0.00019178,2]
[420842617,1776621047615,-500.0,0.00019178,2]
[420842619,1776621047625,-500.0,0.00019178,2]
[420842621,1776621047634,-534.57,0.00019178,2]
[420842623,1776621047642,-11596.01,0.00019178,2]
[420842625,1776621047652,-500.0,0.00019178,2]
[420842627,1776621047661,-2513.53,0.00019178,2]
[420842629,1776621047670,-500.0,0.00019178,2]
[420842630,1776621047680,-500.0,0.00019178,2]
[420842649,1776621047852,-500.0,0.00019178,2]
[420842651,1776621047862,-500.0,0.00019178,2]
[420842653,1776621047871,-500.0,0.00019178,2]
[420842655,1776621047881,-966.52,0.00019178,2]
[420842657,1776621047891,-500.0,0.00019178,2]
[420842659,1776621047900,-500.0,0.00019178,2]
[420842660,1776621047910,-500.0,0.00019178,2]
[420842662,1776621047919,-500.0,0.00019178,2]
[420842664,1776621047928,-500.0,0.00019178,2]
[420842666,1776621047937,-888.33,0.00019178,2]
[420842668,1776621047947,-500.0,0.00019178,2]
[420842670,1776621047957,-500.0,0.00019178,2]
[420842672,1776621047967,-500.0,0.00019178,2]
[420842674,1776621047976,-500.0,0.00019178,2]
[420842676,1776621047986,-742.33,0.00019178,2]
[420842678,1776621047996,-500.0,0.00019178,2]
[420842680,1776621048006,-25433.41,0.00019178,2]
[420842682,1776621048015,-500.0,0.00019178,2]
[420842684,1776621048024,-500.0,0.00019178,2]
[420842686,1776621048033,-500.0,0.00019178,2]
[420842688,1776621048043,-500.0,0.00019178,2]
[420842690,1776621048052,-500.0,0.00019178,2]
[420842692,1776621048061,-1726.75,0.00019178,2]
[420842694,1776621048070,-500.0,0.00019178,2]
[420842696,1776621048079,-2557.43,0.00019178,2]
[420842698,1776621048088,-500.0,0.00019178,2]
[420842700,1776621048098,-500.0,0.00019178,2]
[420842702,1776621048107,-3610.31,0.00019178,2]
[420842704,1776621048116,-4077.34,0.00019178,2]
[420842706,1776621048125,-500.0,0.00019178,2]
[420842708,1776621048134,-500.0,0.00019178,2]
[420842710,1776621048144,-1142.64,0.00019178,2]
[420842711,1776621048153,-500.0,0.00019178,2]
[420842713,1776621048162,-1396.19,0.00019178,2]
[420842715,1776621048172,-7610.92197927,0.00019178,2]
[420842756,1776621049145,-152.0,0.0001534,7]
[420842757,1776621049155,-152.0,0.0001534,7]
[420842758,1776621049164,-152.0,0.00015355,7]
[420842759,1776621049174,-152.0,0.00015355,7]
[420842760,1776621049183,-1252.013075,0.00019178,2]
[420842761,1776621049199,-3314.75668427,0.00019178,2]
[420842762,1776621049211,-6365.56826146,0.00019178,2]
[420842763,1776621049220,-509.02351981,0.00019178,2]
[420842764,1776621049231,-500.0,0.00019178,2]
[420842765,1776621049240,-500.0,0.00019178,2]
[420842766,1776621049249,-882.9,0.00019178,2]
[420842767,1776621049258,-500.0,0.00019178,2]
[420842768,1776621049268,-500.0,0.00019178,2]
[420842769,1776621049277,-242.50821873,0.00019178,2]
[420842808,1776621049693,-257.49178127,0.00019178,2]
[420842810,1776621049703,-500.0,0.00019178,2]
[420842812,1776621049712,-500.0,0.00019178,2]
[420842814,1776621049721,-2609.45821873,0.00019178,2]
[420842816,1776621049732,-828.64178127,0.00019178,2]
[420842818,1776621049742,-509.10996703,0.00019178,2]
[420842820,1776621049751,-3596.26,0.00019178,2]
[420842822,1776621049760,-500.0,0.00019178,2]
[420842824,1776621049769,-500.0,0.00019178,2]
[420842826,1776621049778,-500.0,0.00019178,2]
[420842827,1776621049787,-500.0,0.00019178,2]
[420842829,1776621049798,-500.0,0.00019178,2]
[420842831,1776621049808,-500.0,0.00019178,2]
[420842833,1776621049817,-500.0,0.00019178,2]
[420842835,1776621049826,-500.0,0.00019178,2]
[420842837,1776621049836,-506.40810902,0.00019178,2]
[420842839,1776621049845,-306.33263203,0.00019178,2]
[420842841,1776621049854,-787.8,0.00019178,2]
[420842843,1776621049863,-642.00251761,0.00019178,2]
[420842845,1776621049872,-11499.43675596,0.00019178,2]
[420842850,1776621049919,-129.97324404,0.00019178,2]
[420842852,1776621049928,-1188.8,0.00019178,2]
[420842854,1776621049937,-500.0,0.00019178,2]
[420842856,1776621049950,-500.0,0.00019178,2]
[420842858,1776621049959,-1502.3,0.00019178,2]
[420842860,1776621049969,-760.37,0.00019178,2]
[420842862,1776621049978,-445.50366692,0.00019178,2]
[420842864,1776621049986,-676.57721478,0.00019178,2]
[420842866,1776621050001,-2317.36278522,0.00019178,2]
[420842868,1776621050010,-500.0,0.00019178,2]
[420842870,1776621050019,-738.55,0.00019178,2]
[420842872,1776621050028,-500.0,0.00019178,2]
[420842874,1776621050037,-500.0,0.00019178,2]
[420842875,1776621050046,-610.99,0.00019178,2]
[420842877,1776621050055,-500.0,0.00019178,2]
[420842879,1776621050064,-635.6,0.00019178,2]
[420842881,1776621050074,-500.0,0.00019178,2]
[420842883,1776621050084,-5164.82,0.00019178,2]
[420842885,1776621050093,-362.07605384,0.00019178,2]
[420842887,1776621050103,-500.0,0.00019178,2]
[420842889,1776621050112,-500.0,0.00019178,2]
[420842891,1776621050121,-7080.31,0.00019178,2]
[420842893,1776621050130,-500.0,0.00019178,2]
[420842895,1776621050139,-500.0,0.00019178,2]
[420842896,1776621050151,-358.61264446,0.00019178,2]
[420842898,1776621050160,-500.0,0.00019178,2]
[420842900,1776621050170,-500.0,0.00019178,2]
[420842902,1776621050180,-500.0,0.00019178,2]
[420842904,1776621050189,-507.03664733,0.00019178,2]
[420842906,1776621050199,-10823.1,0.00019178,2]
[420842908,1776621050208,-618.13476508,0.00019178,2]
[420842910,1776621050217,-500.0,0.00019178,2]
[420842912,1776621050227,-1560.3,0.00019178,2]
[420842914,1776621050236,-500.0,0.00019178,2]
[420842915,1776621050245,-500.0,0.00019178,2]
[420842917,1776621050254,-776.08,0.00019178,2]
[420842919,1776621050263,-1621.42,0.00019178,2]
[420842921,1776621050273,-504.93840622,0.00019178,2]
[420842923,1776621050283,-500.0,0.00019178,2]
[420842925,1776621050292,-1304.72,0.00019178,2]
[420842927,1776621050301,-909.44806636,0.00019178,2]
[420842962,1776621654507,1921.56613239,5e-05,2]
[420842963,1776621689957,-230.26308893,7.599e-05,2]
[420842981,1776622218128,179.163326,3.733e-05,2]
[420842989,1776622232232,-5000.0,7.372e-05,2]
[420842990,1776622232243,-525.0,7.446e-05,2]
[420842991,1776622232253,-150.0,7.523e-05,2]
[420842992,1776622232263,-1200.0,7.598e-05,2]
[420842993,1776622232273,-300.0,7.599e-05,2]
[420842994,1776622232282,-23748.33583718,7.6e-05,2]
[420842995,1776622232292,-558.0,8.358e-05,2]
[420842996,1776622232301,-420.0,8.359e-05,2]
[420842997,1776622232310,-1970.79024422,8.5e-05,7]
[420842998,1776622232320,-643.7704425,8.527e-05,2]
[420842999,1776622232329,-587.0,9.195e-05,2]
[420843000,1776622232338,-177.0,9.523e-05,2]
[420843001,1776622232348,-823.0,0.00010114,2]
[420843002,1776622232357,-1152.0,0.00011126,2]
[420843003,1776622232366,-204.0,0.00011523,2]
[420843005,1776622232375,-1490.0,0.00012238,2]
[420843007,1776622232385,-204.26869998,0.00013523,2]
[420843009,1776622232394,-1000.0,0.00013699,2]
[420843011,1776622232403,-1000.0,0.00013699,2]
[420843013,1776622232413,-160.0,0.00017271,2]
[420843015,1776622232423,-537.6845,0.00018128,2]
[420843017,1776622232432,-2150.738,0.00018128,2]
[420843019,1776622232441,-1181.0,0.00018149,2]
[420843021,1776622232450,-418.91703413,0.00018361,2]
[420843022,1776622232460,-500.0,0.00018361,2]
[420843023,1776622232469,-500.0,0.00018361,2]
[420843024,1776622232479,-500.0,0.00018361,2]
[420843025,1776622232489,-500.0,0.00018361,2]
[420843026,1776622232498,-500.0,0.00018361,2]
[420843027,1776622232508,-500.0,0.00018361,2]
[420843028,1776622232517,-500.0,0.00018361,2]
[420843029,1776622232526,-500.0,0.00018361,2]
[420843030,1776622232535,-500.0,0.00018361,2]
[420843031,1776622232544,-500.0,0.00018361,2]
[420843032,1776622232554,-500.0,0.00018361,2]
[420843033,1776622232563,-500.0,0.00018361,2]
[420843034,1776622232573,-500.0,0.00018361,2]
[420843035,1776622232582,-500.0,0.00018361,2]
[420843036,1776622232591,-433.42721279,0.00018361,2]
[420843037,1776622232601,-171.1546461,0.00018361,2]
[420843038,1776622232610,-500.0,0.00018361,2]
[420843039,1776622232620,-153.25457565,0.00018361,2]
[420843040,1776622232629,-500.0,0.00018361,2]
[420843041,1776622232639,-1735.65880745,0.00018362,2]
[420843042,1776622232651,-3886.24206228,0.00018362,2]
[420843043,1776622232663,-3006.78310647,0.00018362,2]
[420843044,1776622232681,-4861.805,0.00018362,2]
[420843045,1776622232692,-56364.99281786,0.00018362,2]
[420843046,1776622232703,-426.65314757,0.00018362,2]
[420843047,1776622232715,-1501.47030915,0.00018362,2]
[420843208,1776622238570,-15322.03215328,0.00018362,2]
[420843323,1776622243767,-128954.65695731,0.00018362,2]
[420843325,1776622243778,-1181.0,0.00018462,2]
[420843327,1776622243787,-1408.0,0.00018645,2]
[420843329,1776622243796,-557.5788265,0.00018676,2]
[420843331,1776622243805,-2230.315306,0.00018676,2]
[420843333,1776622243815,-600.0,0.00018727,2]
[420843335,1776622243824,-1181.0,0.00018774,2]
[420843337,1776622243833,-774.75936599,0.00018978,2]
[420843339,1776622243844,-362.0,0.00019,2]
[420843341,1776622243853,-235.0,0.00019,2]
[420843343,1776622243862,-498.0,0.00019,2]
[420843345,1776622243872,-710.0,0.00019,2]
[420843347,1776622243882,-541.0,0.00019,2]
[420843349,1776622243891,-159.0,0.00019,2]
[420843351,1776622243900,-157.0,0.00019,2]
[420843353,1776622243909,-500.0,0.00019019,30]
[420843355,1776622243919,-500.0,0.00019019,30]
[420843357,1776622243928,-500.0,0.00019019,30]
[420843360,1776622243938,-500.0,0.00019019,30]
[420843362,1776622243947,-500.0,0.00019019,30]
[420843364,1776622243956,-500.0,0.00019019,30]
[420843367,1776622243965,-867.3495989,0.00019019,30]
[420843369,1776622243975,-620.1888487,0.00019019,30]
[420843371,1776622243984,-295.2541447,0.00019019,30]
[420843372,1776622243993,-500.0,0.00019019,30]
[420843373,1776622244002,-500.0,0.00019019,30]
[420843374,1776622244011,-500.0,0.00019019,30]
[420843375,1776622244020,-655.9449394,0.00019019,30]
[420843376,1776622244029,-1181.0,0.00019087,2]
[420843377,1776622244038,-500.0,0.00019173,2]
[420843378,1776622244047,-500.0,0.00019173,2]
[420843379,1776622244056,-500.0,0.00019173,2]
[420843380,1776622244065,-500.0,0.00019173,2]
[420843381,1776622244074,-106.9520125,0.00019178,2]
[420843382,1776622244093,-393.0479875,0.00019178,2]
[420843383,1776622244313,-167.954485,0.00019178,2]
[420843384,1776622244324,-386.253221,0.00019178,2]
[420843385,1776622244334,-500.0,0.00019178,2]
[420843386,1776622244343,-500.0,0.00019178,2]
[420843387,1776622244352,-500.0,0.00019178,2]
[420843388,1776622244362,-500.0,0.00019178,2]
[420843389,1776622244371,-500.0,0.00019178,2]
[420843390,1776622244380,-2637.67,0.00019178,2]
[420843391,1776622244389,-500.0,0.00019178,2]
[420843392,1776622244398,-1177.22,0.00019178,2]
[420843393,1776622244407,-1486.3766,0.00019178,2]
[420843394,1776622244416,-1483.1,0.00019178,2]
[420843395,1776622244426,-500.0,0.00019178,2]
[420843396,1776622244435,-1075.23,0.00019178,2]
[420843397,1776622244444,-535.19938549,0.00019178,2]
[420843398,1776622244454,-508.13373062,0.00019178,2]
[420843399,1776622244464,-38.13245046,0.00019178,2]
[420843405,1776622246577,-441.0,0.00019049,2]
[420843406,1776622246586,-1523.18754954,0.00019178,2]
[420843407,1776622246595,-500.0,0.00019178,2]
[420843408,1776622246605,-500.0,0.00019178,2]
[420843409,1776622246614,-199.22833271,0.00019178,2]
[420843567,1776623432480,-327.0,0.00012892,2]
[420843570,1776623432492,-1369.97378115,0.00012892,2]
[420843725,1776623439080,-3303.02621885,0.00012892,2]
[420843726,1776623439090,-605.0,0.00013022,2]
[420843727,1776623439099,-274.36317734,0.00013156,2]
[420843728,1776623439108,-300.0,0.00013691,2]
[420843729,1776623439118,-300.0,0.00013692,2]
[420843730,1776623439127,-300.0,0.00013692,2]
[420843731,1776623439136,-300.0,0.00013692,2]
[420843732,1776623439146,-300.0,0.00013692,2]
[420843733,1776623439155,-300.0,0.00013692,2]
[420843734,1776623439165,-300.0,0.00013692,2]
[420843735,1776623439174,-300.0,0.00013692,2]
[420843736,1776623439183,-300.0,0.00013692,2]
[420843737,1776623439193,-300.0,0.00013692,2]
[420843738,1776623439202,-300.0,0.00013692,2]
[420843739,1776623439213,-300.0,0.00013692,2]
[420843740,1776623439223,-300.0,0.00013692,2]
[420843741,1776623439232,-300.0,0.00013692,2]
[420843742,1776623439241,-300.0,0.00013692,2]
[420843743,1776623439251,-300.0,0.00013692,2]
[420843744,1776623439260,-626.82472562,0.00013692,2]
[420843745,1776623439269,-1000.0,0.00013699,2]
[420843747,1776623439278,-420.0,0.00015004,2]
[420843748,1776623439287,-2027.0533749,0.00016132,2]
[420843749,1776623439296,-587.0,0.00016443,2]
[420843750,1776623439305,-206.7187114,0.00016896,2]
[420843751,1776623439314,-1699.19350508,0.00017308,2]
[420843753,1776623439324,-4113.0584841,0.00017698,2]
[420843755,1776623439333,-2150.738,0.00017745,2]
[420843757,1776623439342,-537.6845,0.00017745,2]
[420843758,1776623439351,-557.57882651,0.000178,2]
[420843759,1776623439359,-787.3,0.00018133,2]
[420843760,1776623439368,-2230.315306,0.00018293,2]
[420843761,1776623439378,-787.3,0.00018447,2]
[420843762,1776623439387,-8797.26770523,0.00018719,2]
[420843763,1776623439397,-787.3,0.00018761,2]
[420843764,1776623439405,-525.75729297,0.00018807,2]
[420843765,1776623439414,-500.0,0.00018818,2]
[420843766,1776623439422,-293.24192389,0.00018818,2]
[420843767,1776623439431,-289.45863977,0.00018818,2]
[420843768,1776623439440,-500.0,0.00018818,2]
[420843769,1776623439449,-500.0,0.00018818,2]
[420843770,1776623439459,-500.0,0.00018818,2]
[420843771,1776623439468,-598.20554614,0.00018818,2]
[420843772,1776623439477,-326.21482975,0.00018818,2]
[420843785,1776623440976,-173.78517025,0.00018818,2]
[420843787,1776623440987,-500.0,0.00018818,2]
[420843789,1776623440996,-500.0,0.00018818,2]
[420843791,1776623441006,-295.82948859,0.00018818,2]
[420843793,1776623441015,-500.0,0.00018818,2]
[420843795,1776623441024,-199.90566991,0.00018818,2]
[420843797,1776623441036,-209.09420161,0.00018818,2]
[420843799,1776623441045,-205.03012105,0.00018818,2]
[420844001,1776623446908,-1045.6639,0.00018629,2]
[420844002,1776623446918,-325.66173551,0.00018818,2]
[420844003,1776623446927,-500.0,0.00018818,2]
[420844004,1776623446937,-500.0,0.00018818,2]
[420844005,1776623446947,-97.36137723,0.00018818,2]
[420844043,1776623519128,-603.0,0.00012923,2]
[420844044,1776623519155,-209.75980676,0.00012923,2]
[420844045,1776623519182,-362.02851164,0.00013233,14]
[420844055,1776623554944,-1547.62756385,0.00017584,2]
[420844123,1776624571115,-605.0,0.00013022,2]
[420844124,1776624571139,-1217.8128135,0.00013023,2]
[420844148,1776624637891,-5000.0,0.00012892,2]
[420844149,1776624637901,-1024.0,0.00013022,2]
[420844150,1776624637911,-262.0,0.00013023,2]
[420844151,1776624637921,-150.0,0.00013156,2]
[420844152,1776624637931,-1000.0,0.00013699,2]
[420844153,1776624637941,-300.0,0.00013829,2]
[420844154,1776624637950,-300.0,0.00013832,2]
[420844155,1776624637960,-300.0,0.00013832,2]
[420844156,1776624637969,-300.0,0.00013832,2]
[420844157,1776624637979,-300.0,0.00013832,2]
[420844158,1776624637988,-300.0,0.00013832,2]
[420844159,1776624637998,-300.0,0.00013832,2]
[420844160,1776624638007,-300.0,0.00013832,2]
[420844161,1776624638017,-300.0,0.00013832,2]
[420844162,1776624638027,-300.0,0.00013832,2]
[420844163,1776624638036,-300.0,0.00013832,2]
[420844164,1776624638046,-300.0,0.00013832,2]
[420844165,1776624638055,-300.0,0.00013832,2]
[420844166,1776624638065,-300.0,0.00013832,2]
[420844167,1776624638074,-300.0,0.00013832,2]
[420844169,1776624638083,-300.0,0.00013832,2]
[420844170,1776624638093,-600.0,0.00014108,2]
[420844172,1776624638103,-177.0,0.00015156,2]
[420844174,1776624638112,-720.0,0.00015518,2]
[420844176,1776624638122,-300.0,0.00015852,2]
[420844178,1776624638131,-515.64,0.00016438,2]
[420844180,1776624638141,-207.63,0.00016438,2]
[420844182,1776624638151,-160.0,0.00016472,2]
[420844184,1776624638160,-864.0,0.0001707,2]
[420844186,1776624638170,-204.0,0.00017156,2]
[420844188,1776624638179,-174.74,0.00017201,7]
[420844190,1776624638189,-177.530315,0.00017518,2]
[420844192,1776624638198,-174.74,0.0001753,7]
[420844194,1776624638207,-1152.7994432,0.00017567,2]
[420844196,1776624638216,-1547.627564,0.00017567,2]
[420844198,1776624638226,-7829.14741165,0.00017584,2]
[420844201,1776624638237,-451.09,0.00017584,2]
[420844203,1776624638247,-152.0,0.00017716,7]
[420844204,1776624638256,-152.0,0.00017716,7]
[420844206,1776624638265,-152.0,0.00017734,7]
[420844208,1776624638274,-174.74,0.0001786,7]
[420844210,1776624638284,-500.0,0.00017899,2]
[420844212,1776624638293,-402.5233533,0.00017899,2]
[420844214,1776624638302,-500.0,0.00017899,2]
[420844216,1776624638311,-478.78534887,0.00017899,2]
[420844218,1776624638320,-293.42721279,0.00017899,2]
[420844220,1776624638330,-39984.01011201,0.000179,2]
[420844255,1776624638645,-1902.42851966,0.000179,2]
[420844261,1776624638701,-1076.45481776,0.000179,2]
[420844424,1776624640234,-744.24204284,0.000179,2]
[420844554,1776624643142,-152.0,0.00016889,7]
[420844555,1776624643154,-841.45616995,0.000179,2]
[420844566,1776624646001,-152.0,0.00016889,7]
[420844567,1776624646011,-152.0,0.00017204,7]
[420844568,1776624646021,-152.0,0.00017204,7]
[420844569,1776624646031,-11235.16879298,0.000179,2]